[Event "*** Biggest EVER Titled Tuesday"]
[Site "Chess.com"]
[Date "2018.04.17"]
[Round "2"]
[White "PchelkinVK"]
[Black "WarlordX"]
[Result "1-0"]
[WhiteElo "2423"]
[BlackElo "2270"]
[TimeControl "180+2"]
[EndTime "13:22:15 PDT"]
[Termination "PchelkinVK won by resignation"]

1. d4 {[%clk 0:03:01.9]} 1... Nf6 {[%clk 0:03:00.4]} 2. Nc3 {[%clk 0:02:59.8]}
2... d5 {[%clk 0:03:01.2]} 3. Bf4 {[%clk 0:03:00.5]} 3... Bf5 {[%clk 0:03:02.6]}
4. Nf3 {[%clk 0:03:00.7]} 4... h6 {[%clk 0:03:03.4]} 5. e3 {[%clk 0:03:01.8]}
5... e6 {[%clk 0:03:04.6]} 6. Ne5 {[%clk 0:03:03.2]} 6... Bd6 {[%clk 0:03:04.5]}
7. g4 {[%clk 0:03:04.3]} 7... Bh7 {[%clk 0:03:04.9]} 8. h4 {[%clk 0:03:05.2]}
8... Ne4 {[%clk 0:02:59.1]} 9. Nxe4 {[%clk 0:03:04.6]} 9... Bxe4 {[%clk
0:02:58.4]} 10. f3 {[%clk 0:03:05.9]} 10... Bh7 {[%clk 0:02:21.8]} 11. c3 {[%clk
0:02:17.3]} 11... Nd7 {[%clk 0:02:21.1]} 12. Qa4 {[%clk 0:02:16.6]} 12... Bxe5
{[%clk 0:02:09.8]} 13. Bxe5 {[%clk 0:02:16.7]} 13... O-O {[%clk 0:02:11.4]} 14.
Bg3 {[%clk 0:02:09.9]} 14... c5 {[%clk 0:02:00.9]} 15. Bd6 {[%clk 0:02:03.8]}
15... Re8 {[%clk 0:02:01.9]} 16. dxc5 {[%clk 0:02:04.5]} 16... a6 {[%clk
0:02:00.2]} 17. Be2 {[%clk 0:01:48.4]} 17... Rc8 {[%clk 0:01:54.8]} 18. Qd4
{[%clk 0:01:39.3]} 18... Nb8 {[%clk 0:01:45.9]} 19. O-O-O {[%clk 0:01:15.2]}
19... Qa5 {[%clk 0:01:43.9]} 20. a3 {[%clk 0:01:08.4]} 20... Nc6 {[%clk
0:01:42.4]} 21. Qd2 {[%clk 0:01:09.3]} 21... Qa4 {[%clk 0:01:39.6]} 22. Bd3
{[%clk 0:01:05.9]} 22... Na5 {[%clk 0:01:40.7]} 23. Bxh7+ {[%clk 0:01:06.1]}
23... Kxh7 {[%clk 0:01:41.2]} 24. Qc2+ {[%clk 0:01:07.2]} 24... Qxc2+ {[%clk
0:01:41.6]} 25. Kxc2 {[%clk 0:01:09.1]} 25... g6 {[%clk 0:01:33]} 26. e4 {[%clk
0:01:08.3]} 26... Nc4 {[%clk 0:01:26.6]} 27. Rhe1 {[%clk 0:01:05.4]} 27... Rcd8
{[%clk 0:01:19.7]} 28. exd5 {[%clk 0:01:04.9]} 28... exd5 {[%clk 0:01:20.8]} 29.
Rxe8 {[%clk 0:00:55.3]} 29... Rxe8 {[%clk 0:01:22.7]} 30. Kb3 {[%clk 0:00:43.3]}
30... Re2 {[%clk 0:00:21.2]} 31. Rxd5 {[%clk 0:00:43.1]} 31... Nxb2 {[%clk
0:00:22.7]} 32. Re5 {[%clk 0:00:33.8]} 32... Rd2 {[%clk 0:00:14.2]} 33. Re7
{[%clk 0:00:25.3]} 33... Kg7 {[%clk 0:00:14.4]} 34. g5 {[%clk 0:00:21.2]} 34...
hxg5 {[%clk 0:00:15.3]} 35. hxg5 {[%clk 0:00:22.1]} 35... Nd1 {[%clk 0:00:16.6]}
36. Rxb7 {[%clk 0:00:19.6]} 36... Rd3 {[%clk 0:00:17.5]} 37. Be5+ {[%clk
0:00:20.2]} 37... Kf8 {[%clk 0:00:19]} 38. Bf6 {[%clk 0:00:21.3]} 38... Ke8
{[%clk 0:00:20.6]} 39. c6 {[%clk 0:00:21.8]} 39... Nxc3 {[%clk 0:00:17.1]} 40.
Rb8+ {[%clk 0:00:22.3]} 1-0

[Event "*** Biggest EVER Titled Tuesday"]
[Site "Chess.com"]
[Date "2018.04.17"]
[Round "2"]
[White "pedromartinez91"]
[Black "Safar_From_Afar"]
[Result "1-0"]
[WhiteElo "2411"]
[BlackElo "2263"]
[TimeControl "180+2"]
[EndTime "13:22:21 PDT"]
[Termination "pedromartinez91 won by resignation"]

1. d4 {[%clk 0:03:01.9]} 1... Nf6 {[%clk 0:03:00.4]} 2. c4 {[%clk 0:03:00.6]}
2... g6 {[%clk 0:03:01.3]} 3. g3 {[%clk 0:03:00.5]} 3... Bg7 {[%clk 0:03:02.2]}
4. Bg2 {[%clk 0:02:50.6]} 4... O-O {[%clk 0:03:03.1]} 5. Nc3 {[%clk 0:02:50.3]}
5... d6 {[%clk 0:03:03.9]} 6. Nf3 {[%clk 0:02:50]} 6... Nc6 {[%clk 0:03:04.9]}
7. O-O {[%clk 0:02:50.4]} 7... Bf5 {[%clk 0:03:05.8]} 8. Nh4 {[%clk 0:02:49.4]}
8... Bd7 {[%clk 0:03:02.9]} 9. Nf3 {[%clk 0:02:49.5]} 9... Bf5 {[%clk 0:03:03]}
10. h3 {[%clk 0:02:40.1]} 10... Ne4 {[%clk 0:03:02.2]} 11. Nd5 {[%clk
0:02:35.2]} 11... h5 {[%clk 0:02:46.5]} 12. Nh4 {[%clk 0:02:30.8]} 12... e6
{[%clk 0:02:40.5]} 13. Nxf5 {[%clk 0:02:30.4]} 13... exf5 {[%clk 0:02:34.4]} 14.
e3 {[%clk 0:02:27.5]} 14... Re8 {[%clk 0:02:33.3]} 15. h4 {[%clk 0:02:21.7]}
15... a5 {[%clk 0:02:32.7]} 16. a4 {[%clk 0:02:14.9]} 16... Nb4 {[%clk
0:02:14.5]} 17. Nf4 {[%clk 0:02:07.9]} 17... Bh6 {[%clk 0:01:55.4]} 18. Nd3
{[%clk 0:02:01.2]} 18... Nxd3 {[%clk 0:01:46.8]} 19. Qxd3 {[%clk 0:02:03.1]}
19... c6 {[%clk 0:01:37.9]} 20. b3 {[%clk 0:02:03]} 20... d5 {[%clk 0:01:37.2]}
21. Rb1 {[%clk 0:01:54.7]} 21... Qe7 {[%clk 0:01:30.1]} 22. Ra1 {[%clk
0:01:40.6]} 22... Qf6 {[%clk 0:01:27.7]} 23. Ba3 {[%clk 0:01:36.6]} 23... Bf8
{[%clk 0:01:24.3]} 24. Bxf8 {[%clk 0:01:33]} 24... Kxf8 {[%clk 0:01:25.3]} 25.
cxd5 {[%clk 0:01:34.9]} 25... cxd5 {[%clk 0:01:25.1]} 26. Bxe4 {[%clk
0:01:17.6]} 26... fxe4 {[%clk 0:01:19.4]} 27. Qb5 {[%clk 0:01:18]} 27... Qf5
{[%clk 0:01:10]} 28. Rac1 {[%clk 0:01:13.8]} 28... g5 {[%clk 0:00:58.1]} 29. Rc5
{[%clk 0:01:00.2]} 29... Red8 {[%clk 0:00:45.8]} 30. hxg5 {[%clk 0:00:53.2]}
30... Qxg5 {[%clk 0:00:46]} 31. Rc7 {[%clk 0:00:35.5]} 31... h4 {[%clk
0:00:31.9]} 32. Qxb7 {[%clk 0:00:34.8]} 32... hxg3 {[%clk 0:00:22.9]} 33. Rxf7+
{[%clk 0:00:31.8]} 33... Kg8 {[%clk 0:00:23.9]} 34. Rf4 {[%clk 0:00:32.5]} 34...
g2 {[%clk 0:00:02.3]} 35. Rc1 {[%clk 0:00:20]} 35... Qh5 {[%clk 0:00:03.4]} 36.
Kxg2 {[%clk 0:00:18.1]} 36... Qg5+ {[%clk 0:00:04.2]} 37. Kf1 {[%clk 0:00:18.7]}
37... Rdc8 {[%clk 0:00:03.1]} 1-0

[Event "*** Biggest EVER Titled Tuesday"]
[Site "Chess.com"]
[Date "2018.04.17"]
[Round "2"]
[White "MikaelyanArman"]
[Black "Gr3egor"]
[Result "1-0"]
[WhiteElo "2590"]
[BlackElo "2318"]
[TimeControl "180+2"]
[EndTime "13:22:22 PDT"]
[Termination "MikaelyanArman won by resignation"]

1. d4 {[%clk 0:02:54.8]} 1... Nf6 {[%clk 0:03:00.8]} 2. Bg5 {[%clk 0:02:54.7]}
2... d5 {[%clk 0:03:01.5]} 3. e3 {[%clk 0:02:54.8]} 3... e6 {[%clk 0:02:57.6]}
4. Nf3 {[%clk 0:02:54.6]} 4... h6 {[%clk 0:02:58.2]} 5. Bh4 {[%clk 0:02:53.6]}
5... Be7 {[%clk 0:02:58.3]} 6. c4 {[%clk 0:02:52.6]} 6... O-O {[%clk 0:02:58.6]}
7. Nc3 {[%clk 0:02:53.5]} 7... Nbd7 {[%clk 0:02:57.8]} 8. Rc1 {[%clk 0:02:51.5]}
8... c6 {[%clk 0:02:57.9]} 9. a3 {[%clk 0:02:51]} 9... Re8 {[%clk 0:02:52.1]}
10. Bd3 {[%clk 0:02:51]} 10... dxc4 {[%clk 0:02:36.1]} 11. Bxc4 {[%clk
0:02:52.9]} 11... Nd5 {[%clk 0:02:37]} 12. Bxe7 {[%clk 0:02:50.8]} 12... Qxe7
{[%clk 0:02:38.8]} 13. O-O {[%clk 0:02:51.4]} 13... N7b6 {[%clk 0:02:39]} 14.
Bd3 {[%clk 0:02:48.3]} 14... Nxc3 {[%clk 0:02:38.5]} 15. Rxc3 {[%clk 0:02:48.3]}
15... Nd5 {[%clk 0:02:39]} 16. Rc5 {[%clk 0:02:46.2]} 16... Bd7 {[%clk
0:02:38.1]} 17. Bb1 {[%clk 0:02:46.6]} 17... Rac8 {[%clk 0:02:32.5]} 18. Qd3
{[%clk 0:02:46]} 18... g6 {[%clk 0:02:30]} 19. e4 {[%clk 0:02:39.3]} 19... Nf6
{[%clk 0:02:25.3]} 20. e5 {[%clk 0:02:30.8]} 20... Nd5 {[%clk 0:02:25.4]} 21.
Qd2 {[%clk 0:02:31.4]} 21... Kg7 {[%clk 0:02:23.6]} 22. Re1 {[%clk 0:02:28.3]}
22... b6 {[%clk 0:02:24.4]} 23. Rcc1 {[%clk 0:02:27.9]} 23... c5 {[%clk
0:02:25.5]} 24. Rcd1 {[%clk 0:02:17.3]} 24... c4 {[%clk 0:02:26.1]} 25. Rc1
{[%clk 0:02:01.5]} 25... b5 {[%clk 0:02:12.9]} 26. h4 {[%clk 0:02:01.1]} 26...
c3 {[%clk 0:02:05.3]} 27. bxc3 {[%clk 0:02:01.3]} 27... Qxa3 {[%clk 0:02:06.1]}
28. h5 {[%clk 0:01:55.6]} 28... Rxc3 {[%clk 0:02:00.7]} 29. hxg6 {[%clk
0:01:52.6]} 29... fxg6 {[%clk 0:02:00.8]} 30. Be4 {[%clk 0:01:42.7]} 30... Rec8
{[%clk 0:01:46.8]} 31. Ra1 {[%clk 0:01:37]} 31... Qe7 {[%clk 0:01:26.6]} 32.
Rxa7 {[%clk 0:01:29]} 32... R8c7 {[%clk 0:01:26]} 33. Rxc7 {[%clk 0:01:25.3]}
33... Rxc7 {[%clk 0:01:27.9]} 34. Bxd5 {[%clk 0:01:24]} 34... exd5 {[%clk
0:01:29.8]} 35. e6 {[%clk 0:01:24.3]} 35... Be8 {[%clk 0:01:30]} 36. Qf4 {[%clk
0:01:19.9]} 36... Rc3 {[%clk 0:01:05.2]} 37. Qe5+ {[%clk 0:01:15.6]} 37... Kh7
{[%clk 0:01:06.1]} 38. Qf4 {[%clk 0:00:54.2]} 38... Kg7 {[%clk 0:01:05.5]} 39.
Ne5 {[%clk 0:00:51.4]} 39... b4 {[%clk 0:00:59.4]} 40. Ng4 {[%clk 0:00:44.8]}
40... Qg5 {[%clk 0:00:48.4]} 41. Qd6 {[%clk 0:00:43.1]} 41... Rc6 {[%clk
0:00:28.8]} 42. Qxb4 {[%clk 0:00:38.3]} 42... Qxg4 {[%clk 0:00:28.8]} 43. Qe7+
{[%clk 0:00:37.7]} 1-0

[Event "*** Biggest EVER Titled Tuesday"]
[Site "Chess.com"]
[Date "2018.04.17"]
[Round "2"]
[White "Sam_ChessMood"]
[Black "Korchmar_Vasiliy"]
[Result "0-1"]
[WhiteElo "2628"]
[BlackElo "2672"]
[TimeControl "180+2"]
[EndTime "13:22:28 PDT"]
[Termination "Korchmar_Vasiliy won by resignation"]

1. e4 {[%clk 0:03:01.9]} 1... c5 {[%clk 0:03:00.6]} 2. Nf3 {[%clk 0:03:02.5]}
2... d6 {[%clk 0:03:01.7]} 3. Bb5+ {[%clk 0:03:02.6]} 3... Nd7 {[%clk
0:03:02.3]} 4. O-O {[%clk 0:02:59.7]} 4... a6 {[%clk 0:03:02.7]} 5. Bd3 {[%clk
0:03:00.5]} 5... Ngf6 {[%clk 0:03:01.1]} 6. Re1 {[%clk 0:03:01.4]} 6... e6
{[%clk 0:03:02.1]} 7. c3 {[%clk 0:03:00.9]} 7... b5 {[%clk 0:03:03.4]} 8. Bc2
{[%clk 0:02:58.2]} 8... Bb7 {[%clk 0:03:04.8]} 9. d4 {[%clk 0:02:58.5]} 9... Be7
{[%clk 0:02:53.1]} 10. Nbd2 {[%clk 0:02:53.3]} 10... O-O {[%clk 0:02:41.9]} 11.
Nf1 {[%clk 0:02:53.1]} 11... Qc7 {[%clk 0:02:34.7]} 12. Ng3 {[%clk 0:02:53]}
12... Rfc8 {[%clk 0:02:32.6]} 13. Bd3 {[%clk 0:02:41.9]} 13... Nf8 {[%clk
0:02:26.5]} 14. h4 {[%clk 0:02:37.7]} 14... Ng4 {[%clk 0:01:44.8]} 15. Bg5
{[%clk 0:02:35]} 15... h6 {[%clk 0:01:41.8]} 16. Bd2 {[%clk 0:02:28.9]} 16...
Qd8 {[%clk 0:01:36.2]} 17. h5 {[%clk 0:02:13.2]} 17... Bf6 {[%clk 0:01:07]} 18.
Qe2 {[%clk 0:02:12.3]} 18... b4 {[%clk 0:01:01.8]} 19. Rad1 {[%clk 0:01:46.3]}
19... a5 {[%clk 0:00:59.6]} 20. Bf4 {[%clk 0:01:36.2]} 20... cxd4 {[%clk
0:00:52.8]} 21. cxd4 {[%clk 0:01:37]} 21... e5 {[%clk 0:00:54.4]} 22. dxe5
{[%clk 0:01:23.8]} 22... dxe5 {[%clk 0:00:56.3]} 23. Bc1 {[%clk 0:01:19.9]}
23... Be7 {[%clk 0:00:34.6]} 24. Nf5 {[%clk 0:01:04.5]} 24... Bc5 {[%clk
0:00:33.7]} 25. Ne3 {[%clk 0:01:05.8]} 25... Bxe3 {[%clk 0:00:30.6]} 26. Bxe3
{[%clk 0:01:06.7]} 26... Qf6 {[%clk 0:00:32.2]} 27. Rc1 {[%clk 0:00:33.1]} 27...
Ne6 {[%clk 0:00:32.9]} 28. a3 {[%clk 0:00:30.6]} 28... bxa3 {[%clk 0:00:24.9]}
29. bxa3 {[%clk 0:00:32.5]} 29... Qe7 {[%clk 0:00:18.8]} 30. Rb1 {[%clk
0:00:22.7]} 30... Rc7 {[%clk 0:00:15.2]} 31. Rec1 {[%clk 0:00:20.3]} 31... Rac8
{[%clk 0:00:12.9]} 32. Rxc7 {[%clk 0:00:20.9]} 32... Rxc7 {[%clk 0:00:14.8]} 33.
Bb6 {[%clk 0:00:22.1]} 33... Nf4 {[%clk 0:00:12.8]} 34. Qf1 {[%clk 0:00:23.1]}
34... Rc3 {[%clk 0:00:11.6]} 35. Rd1 {[%clk 0:00:06.1]} 35... Qd6 {[%clk
0:00:10]} 36. Bxa5 {[%clk 0:00:04.3]} 36... Rxd3 {[%clk 0:00:11.3]} 0-1

[Event "*** Biggest EVER Titled Tuesday"]
[Site "Chess.com"]
[Date "2018.04.17"]
[Round "2"]
[White "Rakhmanov_Aleksandr"]
[Black "Arm-Akiba"]
[Result "1-0"]
[WhiteElo "2639"]
[BlackElo "2658"]
[TimeControl "180+2"]
[EndTime "13:22:33 PDT"]
[Termination "Rakhmanov_Aleksandr won by resignation"]

1. c4 {[%clk 0:03:01.9]} 1... e6 {[%clk 0:02:57.6]} 2. e4 {[%clk 0:03:00.7]}
2... d5 {[%clk 0:02:53.4]} 3. exd5 {[%clk 0:03:01.4]} 3... exd5 {[%clk
0:02:54.6]} 4. d4 {[%clk 0:03:02.9]} 4... Nf6 {[%clk 0:02:55.1]} 5. Nc3 {[%clk
0:03:04.1]} 5... Bb4 {[%clk 0:02:49.3]} 6. Bd3 {[%clk 0:03:04.8]} 6... dxc4
{[%clk 0:02:48.4]} 7. Bxc4 {[%clk 0:03:06]} 7... O-O {[%clk 0:02:49.1]} 8. Ne2
{[%clk 0:03:06.9]} 8... Nc6 {[%clk 0:02:28.4]} 9. a3 {[%clk 0:03:04.4]} 9...
Bxc3+ {[%clk 0:02:19.7]} 10. bxc3 {[%clk 0:03:04]} 10... Na5 {[%clk 0:02:14.5]}
11. Bd3 {[%clk 0:02:51]} 11... c5 {[%clk 0:02:05.9]} 12. Bg5 {[%clk 0:02:40.2]}
12... h6 {[%clk 0:02:05.4]} 13. Bh4 {[%clk 0:02:39]} 13... cxd4 {[%clk
0:01:57.4]} 14. cxd4 {[%clk 0:02:33.7]} 14... Qd6 {[%clk 0:01:51.3]} 15. O-O
{[%clk 0:02:28.6]} 15... Nd5 {[%clk 0:01:50.5]} 16. Bg3 {[%clk 0:01:57.9]} 16...
Qd8 {[%clk 0:01:47.7]} 17. Bc2 {[%clk 0:01:49]} 17... Re8 {[%clk 0:01:29.7]} 18.
Qd3 {[%clk 0:01:46.9]} 18... g6 {[%clk 0:01:28]} 19. Qf3 {[%clk 0:01:30.3]}
19... Nc4 {[%clk 0:01:20.4]} 20. Rfd1 {[%clk 0:01:10.2]} 20... h5 {[%clk
0:00:56.4]} 21. h3 {[%clk 0:01:06.9]} 21... b5 {[%clk 0:00:51.2]} 22. Be5 {[%clk
0:00:58.7]} 22... Bb7 {[%clk 0:00:48.6]} 23. Be4 {[%clk 0:00:39.9]} 23... Qd7
{[%clk 0:00:48.2]} 24. Nf4 {[%clk 0:00:34.1]} 24... Rad8 {[%clk 0:00:44.9]} 25.
Nxh5 {[%clk 0:00:31.5]} 25... f5 {[%clk 0:00:20.1]} 26. Bxd5+ {[%clk 0:00:27.6]}
26... Bxd5 {[%clk 0:00:21]} 27. Nf6+ {[%clk 0:00:28.9]} 27... Kf7 {[%clk
0:00:22.6]} 28. Qg3 {[%clk 0:00:21.5]} 28... Qb7 {[%clk 0:00:23]} 29. Nxe8
{[%clk 0:00:22.3]} 29... Rxe8 {[%clk 0:00:24.9]} 30. Re1 {[%clk 0:00:23.5]}
30... Nd2 {[%clk 0:00:23]} 31. Qh4 {[%clk 0:00:22.9]} 31... Ke6 {[%clk
0:00:14.6]} 32. Qf6+ {[%clk 0:00:21.2]} 32... Kd7 {[%clk 0:00:15.6]} 33. Qd6+
{[%clk 0:00:19.5]} 33... Kc8 {[%clk 0:00:16.7]} 34. Bf4 {[%clk 0:00:18.8]} 34...
Be4 {[%clk 0:00:15.3]} 35. Rac1+ {[%clk 0:00:18.5]} 35... Nc4 {[%clk 0:00:16.2]}
36. f3 {[%clk 0:00:17.4]} 36... Rd8 {[%clk 0:00:15]} 37. Qc5+ {[%clk 0:00:17.8]}
37... Bc6 {[%clk 0:00:16.5]} 38. Re7 {[%clk 0:00:17.8]} 38... Qb6 {[%clk
0:00:16.5]} 39. Rc7+ {[%clk 0:00:17]} 39... Qxc7 {[%clk 0:00:17.2]} 40. Bxc7
{[%clk 0:00:18.5]} 40... Kxc7 {[%clk 0:00:19.1]} 41. Qxa7+ {[%clk 0:00:19.6]}
1-0

[Event "*** Biggest EVER Titled Tuesday"]
[Site "Chess.com"]
[Date "2018.04.17"]
[Round "2"]
[White "MikeSailer"]
[Black "stregachess"]
[Result "1/2-1/2"]
[WhiteElo "2008"]
[BlackElo "2078"]
[TimeControl "180+2"]
[EndTime "13:22:51 PDT"]
[Termination "Game drawn by repetition"]

1. e4 {[%clk 0:02:40.7]} 1... c5 {[%clk 0:03:00]} 2. Nc3 {[%clk 0:02:35.3]} 2...
Nc6 {[%clk 0:02:59]} 3. f4 {[%clk 0:02:35.8]} 3... g6 {[%clk 0:02:59.4]} 4. Nf3
{[%clk 0:02:36.3]} 4... Bg7 {[%clk 0:03:00.4]} 5. Bb5 {[%clk 0:02:37.3]} 5...
Nd4 {[%clk 0:03:00.6]} 6. a4 {[%clk 0:02:37.3]} 6... e6 {[%clk 0:03:00.5]} 7.
O-O {[%clk 0:02:37.3]} 7... Ne7 {[%clk 0:03:01.4]} 8. e5 {[%clk 0:02:33.6]} 8...
O-O {[%clk 0:02:41.2]} 9. Ne4 {[%clk 0:02:26.1]} 9... b6 {[%clk 0:02:38.2]} 10.
c3 {[%clk 0:02:26]} 10... Nxb5 {[%clk 0:01:53.1]} 11. axb5 {[%clk 0:02:26.1]}
11... Bb7 {[%clk 0:01:54.6]} 12. Nd6 {[%clk 0:02:24.9]} 12... Qc7 {[%clk
0:01:54.9]} 13. d4 {[%clk 0:02:15.5]} 13... cxd4 {[%clk 0:01:54.2]} 14. cxd4
{[%clk 0:02:16.3]} 14... Nc8 {[%clk 0:01:55]} 15. Nxb7 {[%clk 0:02:14.2]} 15...
Qxb7 {[%clk 0:01:55.5]} 16. d5 {[%clk 0:02:09.9]} 16... exd5 {[%clk 0:01:45.5]}
17. Be3 {[%clk 0:02:02.5]} 17... Ne7 {[%clk 0:01:43.5]} 18. Nd4 {[%clk
0:01:57.2]} 18... Rfc8 {[%clk 0:01:40.2]} 19. Qd2 {[%clk 0:01:57.1]} 19... Rc4
{[%clk 0:01:35.1]} 20. Rfc1 {[%clk 0:01:55.1]} 20... Rac8 {[%clk 0:01:35.7]} 21.
Rc3 {[%clk 0:01:53.3]} 21... Qb8 {[%clk 0:01:18.3]} 22. Rac1 {[%clk 0:01:49.2]}
22... Rxc3 {[%clk 0:01:18.1]} 23. Rxc3 {[%clk 0:01:47.3]} 23... d6 {[%clk
0:00:47.9]} 24. e6 {[%clk 0:01:32.2]} 24... fxe6 {[%clk 0:00:33.6]} 25. Nc6
{[%clk 0:01:00.8]} 25... Nxc6 {[%clk 0:00:30.1]} 26. bxc6 {[%clk 0:01:01.2]}
26... Bxc3 {[%clk 0:00:25.7]} 27. Qxc3 {[%clk 0:01:00.4]} 27... Qc7 {[%clk
0:00:26.7]} 28. Qf6 {[%clk 0:00:55.8]} 28... Qf7 {[%clk 0:00:25.5]} 29. Qc3
{[%clk 0:00:51.8]} 29... Qc7 {[%clk 0:00:19.3]} 30. Qf6 {[%clk 0:00:51.8]} 30...
Qf7 {[%clk 0:00:20.2]} 31. Qc3 {[%clk 0:00:52.4]} 31... Qe8 {[%clk 0:00:21.3]}
32. c7 {[%clk 0:00:50.5]} 32... Qd7 {[%clk 0:00:20.8]} 33. Qf6 {[%clk
0:00:48.1]} 33... Qxc7 {[%clk 0:00:17.5]} 34. Bd4 {[%clk 0:00:48.7]} 34... Qc1+
{[%clk 0:00:18.2]} 35. Kf2 {[%clk 0:00:49.1]} 35... Rc2+ {[%clk 0:00:17.6]} 36.
Kg3 {[%clk 0:00:43]} 36... Qe1+ {[%clk 0:00:13.2]} 37. Bf2 {[%clk 0:00:23.2]}
37... Qe4 {[%clk 0:00:12.2]} 38. Qd8+ {[%clk 0:00:22.6]} 38... Kg7 {[%clk
0:00:13.4]} 39. Qe7+ {[%clk 0:00:21.6]} 39... Kh6 {[%clk 0:00:14.6]} 40. Qg5+
{[%clk 0:00:15.2]} 40... Kg7 {[%clk 0:00:15.6]} 41. Qe7+ {[%clk 0:00:15.5]}
41... Kh6 {[%clk 0:00:16.7]} 42. Qg5+ {[%clk 0:00:16.3]} 42... Kg7 {[%clk
0:00:18]} 43. Qe7+ {[%clk 0:00:17.1]} 43... Kg8 {[%clk 0:00:19.2]} 44. Qe8+
{[%clk 0:00:16.6]} 44... Kg7 {[%clk 0:00:20.1]} 45. Qe7+ {[%clk 0:00:17.9]}
45... Kh6 {[%clk 0:00:21.3]} 46. Qg5+ {[%clk 0:00:18.8]} 46... Kg7 {[%clk
0:00:22.6]} 47. Qe7+ {[%clk 0:00:19.9]} 1/2-1/2

[Event "*** Biggest EVER Titled Tuesday"]
[Site "Chess.com"]
[Date "2018.04.17"]
[Round "2"]
[White "stalyansky"]
[Black "aa175"]
[Result "1-0"]
[WhiteElo "2129"]
[BlackElo "1868"]
[TimeControl "180+2"]
[EndTime "13:22:51 PDT"]
[Termination "stalyansky won by checkmate"]

1. e4 {[%clk 0:03:01.9]} 1... e5 {[%clk 0:02:59.8]} 2. Nf3 {[%clk 0:03:03.1]}
2... Nc6 {[%clk 0:02:54.8]} 3. Bb5 {[%clk 0:03:03.9]} 3... Nf6 {[%clk
0:02:54.1]} 4. O-O {[%clk 0:03:03.7]} 4... Be7 {[%clk 0:02:48]} 5. Re1 {[%clk
0:02:54.5]} 5... d6 {[%clk 0:02:48.5]} 6. c3 {[%clk 0:02:43.8]} 6... a6 {[%clk
0:02:48]} 7. Ba4 {[%clk 0:02:44.5]} 7... b5 {[%clk 0:02:49]} 8. Bc2 {[%clk
0:02:44.6]} 8... Bg4 {[%clk 0:02:11.4]} 9. d3 {[%clk 0:02:34.2]} 9... O-O {[%clk
0:02:07.4]} 10. Nbd2 {[%clk 0:02:35.3]} 10... Re8 {[%clk 0:02:03.3]} 11. Nf1
{[%clk 0:02:35.5]} 11... h6 {[%clk 0:01:59.2]} 12. Ng3 {[%clk 0:02:35.8]} 12...
Qd7 {[%clk 0:01:54.2]} 13. h3 {[%clk 0:02:33.9]} 13... Be6 {[%clk 0:01:54.7]}
14. d4 {[%clk 0:02:30.9]} 14... Bxh3 {[%clk 0:01:46.2]} 15. d5 {[%clk
0:02:28.5]} 15... Na7 {[%clk 0:01:41.5]} 16. gxh3 {[%clk 0:02:29.1]} 16... Qxh3
{[%clk 0:01:42.8]} 17. Nh2 {[%clk 0:02:27.5]} 17... h5 {[%clk 0:01:38.6]} 18.
Qf3 {[%clk 0:02:10.1]} 18... Ng4 {[%clk 0:01:25.7]} 19. Nxg4 {[%clk 0:02:06.4]}
19... hxg4 {[%clk 0:01:26.6]} 20. Qh1 {[%clk 0:01:39.4]} 20... Qxh1+ {[%clk
0:01:22.4]} 21. Kxh1 {[%clk 0:01:39.5]} 21... g6 {[%clk 0:01:24.3]} 22. Kg2
{[%clk 0:01:35.4]} 22... c6 {[%clk 0:01:18.2]} 23. dxc6 {[%clk 0:01:31.6]} 23...
Nxc6 {[%clk 0:01:20.1]} 24. Bb3 {[%clk 0:01:32.7]} 24... Kg7 {[%clk 0:01:18.1]}
25. Bd5 {[%clk 0:01:31.8]} 25... Rac8 {[%clk 0:01:18.6]} 26. a4 {[%clk
0:01:32.1]} 26... Na5 {[%clk 0:01:18.4]} 27. axb5 {[%clk 0:01:28.5]} 27... Nc4
{[%clk 0:01:14.1]} 28. bxa6 {[%clk 0:01:28.9]} 28... Nb6 {[%clk 0:01:11.4]} 29.
Bb7 {[%clk 0:01:20.8]} 29... Rc7 {[%clk 0:01:13]} 30. Be3 {[%clk 0:01:15.6]}
30... Nc4 {[%clk 0:01:05.8]} 31. Bd5 {[%clk 0:01:05.8]} 31... Nxb2 {[%clk
0:01:04.6]} 32. a7 {[%clk 0:01:05.1]} 32... Nd3 {[%clk 0:01:00.2]} 33. Reb1
{[%clk 0:00:38.4]} 33... Rxc3 {[%clk 0:00:47.4]} 34. Rb8 {[%clk 0:00:35.8]}
34... Rcc8 {[%clk 0:00:38.3]} 35. Rxc8 {[%clk 0:00:30.3]} 35... Rxc8 {[%clk
0:00:40.2]} 36. a8=Q {[%clk 0:00:31.6]} 36... Rxa8 {[%clk 0:00:42.1]} 37. Rxa8
{[%clk 0:00:32.3]} 37... Ne1+ {[%clk 0:00:40.4]} 38. Kf1 {[%clk 0:00:33.1]}
38... Nf3 {[%clk 0:00:41.8]} 39. Ra7 {[%clk 0:00:33.4]} 39... Kf6 {[%clk
0:00:41.9]} 40. Ne2 {[%clk 0:00:26.3]} 40... Nh2+ {[%clk 0:00:33.6]} 41. Kg2
{[%clk 0:00:26.6]} 41... Nf3 {[%clk 0:00:35.5]} 42. Kg3 {[%clk 0:00:27.3]} 42...
Ng1 {[%clk 0:00:21]} 43. Nxg1 {[%clk 0:00:26.7]} 43... g5 {[%clk 0:00:22.8]} 44.
Kxg4 {[%clk 0:00:26.7]} 44... Kg6 {[%clk 0:00:24.5]} 45. Rxe7 {[%clk 0:00:27.2]}
45... Kh6 {[%clk 0:00:25.7]} 46. Bxg5+ {[%clk 0:00:27.6]} 46... Kg6 {[%clk
0:00:26.8]} 47. Bxf7+ {[%clk 0:00:26.2]} 47... Kg7 {[%clk 0:00:27.5]} 48. Bh5+
{[%clk 0:00:23.4]} 48... Kf8 {[%clk 0:00:23.6]} 49. Kf5 {[%clk 0:00:21.4]} 49...
d5 {[%clk 0:00:24.5]} 50. Kf6 {[%clk 0:00:21.6]} 50... Kg8 {[%clk 0:00:26]} 51.
Bg6 {[%clk 0:00:21.2]} 51... dxe4 {[%clk 0:00:24.9]} 52. Re8# {[%clk 0:00:22.5]}
1-0